fUSD/lending_fUSD_20250416
["ID","MTS","AMOUNT","RATE_DAILY","PERIOD"]
[358169986,1744814968584,-507.2730437,0.0005589,120]
[358169987,1744814968617,-500.0,0.0005589,120]
[358169988,1744814968648,-1172.67,0.0005589,120]
[358169989,1744814968677,-500.0,0.0005589,120]
[358169990,1744814968706,-500.0,0.0005589,120]
[358169991,1744814968736,-992.3,0.0005589,120]
[358169992,1744814968766,-500.0,0.0005589,120]
[358169993,1744814968797,-500.0,0.0005589,120]
[358169994,1744814968826,-500.0,0.0005589,120]
[358169995,1744814968855,-500.0,0.0005589,120]
[358169996,1744814968883,-500.0,0.0005589,120]
[358169997,1744814968911,-500.0,0.0005589,120]
[358169998,1744814968939,-1291.19,0.0005589,120]
[358169999,1744814968968,-500.0,0.0005589,120]
[358170000,1744814968996,-1010.57,0.0005589,120]
[358170001,1744814969024,-500.0,0.0005589,120]
[358170002,1744814969053,-2405.34,0.0005589,120]
[358170003,1744814969082,-500.0,0.0005589,120]
[358170004,1744814969110,-500.0,0.0005589,120]
[358170005,1744814969138,-500.0,0.0005589,120]
[358170006,1744814969165,-1984.48,0.0005589,120]
[358170007,1744814969194,-500.0,0.0005589,120]
[358170008,1744814969225,-500.0,0.0005589,120]
[358170009,1744814969256,-500.0,0.0005589,120]
[358170010,1744814969286,-1154.69,0.0005589,120]
[358170011,1744814969317,-1354.36,0.0005589,120]
[358170012,1744814969348,-500.0,0.0005589,120]
[358170013,1744814969381,-859.65,0.0005589,120]
[358170014,1744814969412,-500.0,0.0005589,120]
[358170015,1744814969442,-500.0,0.0005589,120]
[358170016,1744814969474,-500.0,0.0005589,120]
[358170017,1744814969505,-1165.59,0.0005589,120]
[358170018,1744814969539,-500.0,0.0005589,120]
[358170019,1744814969569,-500.0,0.0005589,120]
[358170020,1744814969601,-500.0,0.0005589,120]
[358170021,1744814969632,-620.99160042,0.0005589,120]
[358170022,1744814969663,-1550.92,0.0005589,120]
[358170023,1744814969695,-500.0,0.0005589,120]
[358170024,1744814969726,-500.0,0.0005589,120]
[358170025,1744814969758,-500.0,0.0005589,120]
[358170026,1744814969788,-500.0,0.0005589,120]
[358170027,1744814969820,-500.0,0.0005589,120]
[358170028,1744814969851,-500.0,0.0005589,120]
[358170029,1744814969883,-1327.19,0.0005589,35]
[358170030,1744814969916,-500.0,0.0005589,120]
[358170031,1744814969949,-500.0,0.0005589,30]
[358170032,1744814969981,-1239.55,0.0005589,120]
[358170033,1744814970015,-500.0,0.0005589,120]
[358170034,1744814970047,-1194.22,0.0005589,120]
[358170035,1744814970078,-500.0,0.0005589,120]
[358170036,1744814970110,-1406.48,0.0005589,120]
[358170037,1744814970142,-823.16,0.0005589,120]
[358170038,1744814970173,-500.0,0.0005589,120]
[358170039,1744814970205,-610.03,0.0005589,120]
[358170040,1744814970236,-500.0,0.0005589,120]
[358170041,1744814970268,-1446.67,0.0005589,120]
[358170042,1744814970300,-492.32,0.0005589,120]
[358170043,1744814970332,-1272.59,0.0005589,120]
[358170044,1744814970363,-500.0,0.0005589,120]
[358170045,1744814970393,-1436.95,0.0005589,120]
[358170046,1744814970424,-500.0,0.0005589,120]
[358170047,1744814970455,-500.0,0.0005589,120]
[358170048,1744814970487,-500.0,0.0005589,120]
[358170049,1744814970522,-517.92578591,0.0005589,120]
[358170050,1744814970552,-500.0,0.0005589,120]
[358170051,1744814970583,-500.0,0.0005589,120]
[358170052,1744814970612,-500.0,0.0005589,120]
[358170053,1744814970641,-500.0,0.0005589,120]
[358170054,1744814970671,-500.0,0.0005589,120]
[358170055,1744814970700,-1065.65,0.0005589,120]
[358170056,1744814970732,-173.93826224,0.0005589,120]
[358170057,1744814970762,-500.0,0.0005589,120]
[358170058,1744814970791,-645.30901975,0.0005589,120]
[358170059,1744814970821,-500.0,0.0005589,120]
[358170060,1744814970852,-1106.45,0.0005589,120]
[358170061,1744814970882,-500.0,0.0005589,120]
[358170062,1744814970912,-500.0,0.0005589,120]
[358170063,1744814970941,-1467.04,0.0005589,120]
[358170064,1744814970971,-500.0,0.0005589,120]
[358170065,1744814971000,-151.85311474,0.0005589,120]
[358170066,1744814971030,-500.0,0.0005589,120]
[358170067,1744814971059,-556.41,0.0005589,120]
[358170068,1744814971088,-633.28236739,0.0005589,120]
[358170069,1744814971117,-500.0,0.0005589,120]
[358170070,1744814971146,-500.0,0.0005589,120]
[358170071,1744814971176,-500.0,0.0005589,120]
[358170072,1744814971205,-1902.3,0.0005589,120]
[358170073,1744814971235,-500.0,0.0005589,120]
[358170074,1744814971266,-1316.02,0.0005589,120]
[358170075,1744814971298,-500.0,0.0005589,120]
[358170076,1744814971330,-500.0,0.0005589,120]
[358170077,1744814971361,-1734.75,0.0005589,120]
[358170078,1744814971393,-485.78406984,0.0005589,120]
[358170079,1744814971428,-500.0,0.0005589,120]
[358170080,1744814971461,-500.0,0.0005589,120]
[358170081,1744814971494,-500.0,0.0005589,120]
[358170082,1744814971527,-500.0,0.0005589,120]
[358170083,1744814971557,-1956.07,0.0005589,120]
[358170084,1744814971587,-502.11328213,0.0005589,120]
[358170085,1744814971616,-500.0,0.0005589,120]
[358170086,1744814971646,-500.0,0.0005589,120]
[358170087,1744814971676,-1151.52,0.0005589,120]
[358170088,1744814971848,-500.0,0.0005589,120]
[358170089,1744814971880,-500.0,0.0005589,120]
[358170090,1744814971910,-1094.55,0.0005589,120]
[358170091,1744814971940,-760.37,0.0005589,120]
[358170092,1744814971969,-256.64157869,0.0005589,120]
[358170093,1744814971999,-500.0,0.0005589,120]
[358170094,1744814972032,-500.0,0.0005589,120]
[358170095,1744814972065,-1445.11,0.0005589,120]
[358170096,1744814972095,-901.79,0.0005589,30]
[358170097,1744814972166,-2153.97,0.0005589,120]
[358170098,1744814972234,-539.32688674,0.0005589,120]
[358170099,1744814972303,-500.0,0.0005589,120]
[358170100,1744814972369,-500.0,0.0005589,120]
[358170101,1744814972435,-500.0,0.0005589,120]
[358170102,1744814972501,-500.0,0.0005589,120]
[358170103,1744814972570,-224.79872167,0.0005589,120]
[358170104,1744814972636,-500.0,0.0005589,120]
[358170105,1744814972705,-500.0,0.0005589,120]
[358170106,1744814972779,-500.0,0.0005589,120]
[358170107,1744814972852,-1207.85,0.0005589,120]
[358170108,1744814972926,-500.0,0.0005589,120]
[358170109,1744814972999,-500.0,0.0005589,120]
[358170110,1744814973071,-530.95830779,0.0005589,120]
[358170111,1744814973147,-500.0,0.0005589,120]
[358170112,1744814973221,-500.75407366,0.0005589,120]
[358170113,1744814973298,-1000.0,0.0005589,120]
[358170114,1744814973371,-500.0,0.0005589,120]
[358170115,1744814973444,-500.0,0.0005589,120]
[358170116,1744814973515,-1092.84,0.0005589,120]
[358170117,1744814973582,-1572.69,0.0005589,120]
[358170118,1744814973650,-500.0,0.0005589,120]
[358170119,1744814973719,-511.59175884,0.0005589,120]
[358170120,1744814973800,-500.0,0.0005589,120]
[358170121,1744814973868,-500.0,0.0005589,120]
[358170122,1744814973932,-500.0,0.0005589,30]
[358170123,1744814973996,-500.0,0.0005589,120]
[358170124,1744814974062,-449.87315776,0.0005589,120]
[358170125,1744814974129,-500.0,0.0005589,120]
[358170126,1744814974198,-2192.06,0.0005589,120]
[358170127,1744814974274,-500.0,0.0005589,120]
[358170128,1744814974351,-500.0,0.0005589,120]
[358170129,1744814974427,-500.0,0.0005589,120]
[358170130,1744814974502,-500.0,0.0005589,120]
[358170131,1744814974583,-500.0,0.0005589,120]
[358170132,1744814974650,-484.53837722,0.0005589,120]
[358170133,1744814974716,-2358.99,0.0005589,120]
[358170134,1744814974793,-1214.24,0.0005589,120]
[358170135,1744814974863,-500.0,0.0005589,120]
[358170136,1744814974930,-1582.43,0.0005589,120]
[358170137,1744814974995,-191.50236286,0.0005589,120]
[358170138,1744814975058,-1147.0,0.0005589,120]
[358170139,1744814975122,-507.46,0.0005589,120]
[358170140,1744814975187,-500.0,0.0005589,120]
[358170141,1744814975253,-500.0,0.0005589,120]
[358170142,1744814975322,-1450.41,0.0005589,120]
[358170143,1744814975391,-500.0,0.0005589,120]
[358170144,1744814975459,-500.0,0.0005589,120]
[358170145,1744814975530,-500.0,0.0005589,120]
[358170146,1744814975604,-500.0,0.0005589,120]
[358170147,1744814975670,-500.0,0.0005589,120]
[358170148,1744814975740,-821.79,0.0005589,120]
[358170149,1744814975818,-500.0,0.0005589,120]
[358170150,1744814975894,-1508.18,0.0005589,120]
[358170151,1744814975964,-554.76578627,0.0005589,120]
[358170152,1744814976031,-1287.91,0.0005589,120]
[358170153,1744814976097,-1198.95,0.0005589,120]
[358170154,1744814976166,-350.10066738,0.0005589,120]
[358170155,1744814976240,-500.0,0.0005589,120]
[358170156,1744814976315,-633.1955801,0.0005589,120]
[358170157,1744814976383,-500.0,0.0005589,120]
[358170158,1744814976452,-500.0,0.0005589,120]
[358170159,1744814976522,-500.0,0.0005589,120]
[358170160,1744814976594,-535.92,0.0005589,120]
[358170161,1744814976668,-500.0,0.0005589,120]
[358170162,1744814976742,-500.0,0.0005589,120]
[358170163,1744814976817,-500.0,0.0005589,120]
[358170164,1744814976890,-500.0,0.0005589,120]
[358170165,1744814976961,-1104.33,0.0005589,120]
[358170166,1744814977034,-844.87,0.0005589,120]
[358170167,1744814977103,-500.0,0.0005589,120]
[358170168,1744814977173,-500.0,0.0005589,120]
[358170169,1744814977253,-500.0,0.0005589,120]
[358170170,1744814977332,-500.0,0.0005589,120]
[358170171,1744814977408,-500.0,0.0005589,120]
[358170172,1744814977486,-347.19040948,0.0005589,120]
[358170173,1744814977561,-1142.18,0.0005589,120]
[358170174,1744814977633,-524.13816342,0.0005589,120]
[358170175,1744814977708,-500.0,0.0005589,120]
[358170176,1744814977788,-777.56,0.0005589,120]
[358170177,1744814977861,-500.0,0.0005589,120]
[358170178,1744814977937,-500.0,0.0005589,120]
[358170179,1744814978009,-500.0,0.0005589,120]
[358170180,1744814978079,-500.0,0.0005589,120]
[358170181,1744814978150,-500.0,0.0005589,120]
[358170182,1744814978241,-523.78887491,0.0005589,120]
[358170183,1744814978321,-505.9,0.0005589,120]
[358170184,1744814978398,-554.4843207,0.0005589,120]
[358170185,1744814978476,-500.0,0.0005589,120]
[358170186,1744814978556,-500.0,0.0005589,120]
[358170187,1744814978625,-500.0,0.0005589,120]
[358170188,1744814978699,-500.0,0.0005589,120]
[358170189,1744814978776,-500.0,0.0005589,120]
[358170190,1744814978851,-1834.3,0.0005589,120]
[358170191,1744814978923,-500.0,0.0005589,120]
[358170192,1744814979191,-500.0,0.0005589,120]
[358170193,1744814979296,-500.0,0.0005589,120]
[358170194,1744814979373,-597.50414278,0.0005589,120]
[358170195,1744814979450,-500.0,0.0005589,120]
[358170196,1744814979529,-500.0,0.0005589,120]
[358170197,1744814979606,-500.0,0.0005589,120]
[358170198,1744814979680,-1336.53,0.0005589,120]
[358170199,1744814979754,-500.0,0.0005589,120]
[358170200,1744814979829,-500.0,0.0005589,120]
[358170201,1744814979905,-548.6,0.0005589,120]
[358170202,1744814979980,-500.0,0.0005589,120]
[358170203,1744814980050,-500.0,0.0005589,120]
[358170204,1744814980122,-500.0,0.0005589,120]
[358170205,1744814980192,-500.0,0.0005589,120]
[358170206,1744814980271,-1257.13,0.0005589,120]
[358170207,1744814980350,-294.88937592,0.0005589,120]
[358170208,1744814980430,-504.21,0.0005589,120]
[358170209,1744814980503,-864.66,0.0005589,120]
[358170210,1744814980575,-500.0,0.0005589,120]
[358170211,1744814980638,-500.0,0.0005589,120]
[358170212,1744814980702,-545.38616299,0.0005589,120]
[358170213,1744814980778,-500.0,0.0005589,120]
[358170214,1744814980846,-243.28112715,0.0005589,120]
[358170215,1744814980906,-500.0,0.0005589,120]
[358170216,1744814980965,-500.0,0.0005589,120]
[358170217,1744814981028,-500.0,0.0005589,120]
[358170218,1744814981095,-500.0,0.0005589,120]
[358170219,1744814981161,-500.0,0.0005589,120]
[358170220,1744814981230,-500.0,0.0005589,120]
[358170221,1744814981304,-1600.01,0.0005589,120]
[358170222,1744814981378,-500.0,0.0005589,120]
[358170223,1744814981451,-500.0,0.0005589,120]
[358170224,1744814981520,-500.0,0.0005589,120]
[358170225,1744814981586,-540.13665422,0.0005589,120]
[358170226,1744814981654,-500.0,0.0005589,120]
[358170227,1744814981723,-500.0,0.0005589,120]
[358170228,1744814981800,-500.0,0.0005589,120]
[358170229,1744814981869,-500.0,0.0005589,120]
[358170230,1744814981937,-500.0,0.0005589,120]
[358170231,1744814982007,-500.0,0.0005589,120]
[358170232,1744814982074,-500.0,0.0005589,120]
[358170233,1744814982145,-631.97,0.0005589,120]
[358170234,1744814982216,-1119.49,0.0005589,120]
[358170235,1744814982284,-500.0,0.0005589,120]
[358170236,1744814982351,-500.0,0.0005589,120]
[358170237,1744814982419,-500.0,0.0005589,120]
[358170238,1744814982486,-500.0,0.0005589,120]
[358170239,1744814982551,-500.0,0.0005589,120]
[358170240,1744814982617,-1164.47,0.0005589,120]
[358170241,1744814982682,-1165.25,0.0005589,120]
[358170242,1744814982748,-500.0,0.0005589,120]
[358170243,1744814982822,-500.0,0.0005589,120]
[358170244,1744814982893,-500.0,0.0005589,120]
[358170245,1744814982963,-1423.77,0.0005589,120]
[358170246,1744814983031,-500.0,0.0005589,120]
[358170247,1744814983096,-569.56191085,0.0005589,120]
[358170248,1744814983159,-522.31906089,0.0005589,120]
[358170249,1744814983230,-500.0,0.0005589,120]
[358170250,1744814983298,-547.51602704,0.0005589,120]
[358170251,1744814983364,-500.0,0.0005589,120]
[358170252,1744814983435,-500.0,0.0005589,120]
[358170253,1744814983499,-500.0,0.0005589,120]
[358170254,1744814983569,-500.0,0.0005589,120]
[358170255,1744814983639,-500.0,0.0005589,120]
[358170256,1744814983704,-500.0,0.0005589,120]
[358170257,1744814983780,-2157.23,0.0005589,120]
[358170258,1744814983857,-500.0,0.0005589,120]
[358170259,1744814983928,-500.0,0.0005589,120]
[358170260,1744814983994,-2143.66,0.0005589,120]
[358170261,1744814984063,-500.0,0.0005589,120]
[358170262,1744814984131,-2137.01,0.0005589,120]
[358170263,1744814984201,-1583.1,0.0005589,120]
[358170264,1744814984275,-500.0,0.0005589,120]
[358170265,1744814984351,-355.9156717,0.0005589,120]
[358170266,1744814984431,-1217.27,0.0005589,120]
[358170267,1744814984510,-509.60070816,0.0005589,120]
[358170268,1744814984590,-500.0,0.0005589,120]
[358170269,1744814984668,-500.0,0.0005589,120]
[358170270,1744814984750,-1362.34,0.0005589,120]
[358170271,1744814984829,-500.0,0.0005589,120]
[358170272,1744814984907,-744.68,0.0005589,120]
[358170273,1744814984983,-500.0,0.0005589,120]
[358170274,1744814985060,-500.0,0.0005589,120]
[358170275,1744814985136,-500.0,0.0005589,120]
[358170276,1744814985206,-500.0,0.0005589,118]
[358170277,1744814985278,-1016.72,0.0005589,120]
[358170278,1744814985346,-522.50121025,0.0005589,120]
[358170279,1744814985416,-500.0,0.0005589,120]
[358170280,1744814985487,-500.0,0.0005589,120]
[358170281,1744814985557,-500.0,0.0005589,120]
[358170282,1744814985625,-500.0,0.0005589,120]
[358170283,1744814985686,-500.0,0.0005589,120]
[358170284,1744814985751,-500.0,0.0005589,120]
[358170285,1744814985822,-500.0,0.0005589,120]
[358170286,1744814985890,-500.0,0.0005589,120]
[358170287,1744814985958,-500.0,0.0005589,120]
[358170288,1744814986025,-995.69,0.0005589,120]
[358170289,1744814986092,-500.0,0.0005589,120]
[358170290,1744814986162,-500.0,0.0005589,120]
[358170291,1744814986236,-574.46,0.0005589,120]
[358170292,1744814986310,-422.87456391,0.0005589,120]
[358170293,1744814986388,-991.54,0.0005589,120]
[358170294,1744814986468,-500.0,0.0005589,120]
[358170295,1744814986542,-343.34991642,0.0005589,120]
[358170296,1744814986616,-500.0,0.0005589,120]
[358170297,1744814986852,-904.33,0.0005589,120]
[358170298,1744814986930,-150.0,0.00055962,120]
[358170299,1744814987008,-50000.0,0.00056,56]
[358170300,1744814987092,-50000.0,0.00056,66]
[358170301,1744814987169,-169.65303218,0.00056,120]
[358170302,1744814987247,-400.0,0.00056,120]
[358170303,1744814987325,-900.0,0.00056,120]
[358170304,1744814987403,-11699.0,0.00056,120]
[358170305,1744814987481,-1000000.0,0.00056,120]
[358170306,1744814987557,-433286.82686374,0.00056,120]
[358170309,1744815031333,-189.86,0.00027425,30]
[358170310,1744815031417,-153.0,0.00043288,30]
[358170311,1744815031489,-153.0,0.00043288,30]
[358170312,1744815031562,-153.0,0.00043288,30]
[358170313,1744815031640,-153.0,0.00043288,30]
[358170314,1744815031720,-153.0,0.00043288,30]
[358170319,1744815031806,-153.0,0.00043288,30]
[358170324,1744815032163,-153.0,0.00043288,30]
[358170325,1744815032239,-153.0,0.00043288,30]
[358170326,1744815032323,-153.0,0.00043288,30]
[358170327,1744815032401,-153.0,0.00043288,30]
[358170341,1744815032481,-153.0,0.00043288,30]
[358170351,1744815032563,-153.0,0.00043288,30]
[358170361,1744815032651,-153.0,0.00043288,30]
[358170365,1744815032736,-153.0,0.00043288,30]
[358170374,1744815032821,-153.0,0.00043288,30]
[358170376,1744815032902,-153.0,0.00043288,30]
[358170377,1744815032984,-153.0,0.00043288,30]
[358170378,1744815033068,-153.0,0.00043288,30]
[358170379,1744815033151,-153.0,0.00043288,30]
[358170380,1744815033238,-153.0,0.00043288,30]
[358170381,1744815033327,-153.0,0.00043288,30]
[358170382,1744815033417,-153.0,0.00043288,30]
[358170383,1744815033501,-153.0,0.00043288,30]
[358170384,1744815033581,-153.0,0.00043288,30]
[358170385,1744815033664,-153.0,0.00043288,30]
[358170386,1744815033740,-153.0,0.00043288,30]
[358170387,1744815033821,-153.0,0.00043288,30]
[358170388,1744815033902,-153.0,0.00043288,30]
[358170389,1744815033985,-153.0,0.00043288,30]
[358170390,1744815034066,-153.0,0.00043288,30]
[358170391,1744815034151,-153.0,0.00043288,30]
[358170392,1744815034235,-153.0,0.00043288,30]
[358170393,1744815034318,-153.0,0.00043288,30]
[358170394,1744815034406,-153.0,0.00043288,30]
[358170395,1744815034495,-153.0,0.00043288,30]
[358170396,1744815034582,-153.0,0.00043288,30]
[358170397,1744815034671,-153.0,0.00043288,30]
[358170398,1744815034759,-153.0,0.00043288,30]
[358170399,1744815034842,-153.0,0.00043288,30]
[358170400,1744815034925,-153.0,0.00043288,30]
[358170401,1744815035002,-153.0,0.00043288,30]
[358170402,1744815035083,-153.0,0.00043288,30]
[358170403,1744815035162,-153.0,0.00043288,30]
[358170404,1744815035243,-153.0,0.00043288,30]
[358170405,1744815035325,-153.0,0.00043288,30]
[358170406,1744815035405,-153.0,0.00043288,30]
[358170407,1744815035486,-153.0,0.00043288,30]
[358170408,1744815035560,-153.0,0.00043288,30]
[358170409,1744815035634,-153.0,0.00043288,30]
[358170410,1744815035714,-153.0,0.00043288,30]
[358170411,1744815035805,-153.0,0.00043288,30]
[358170412,1744815035887,-153.0,0.00043288,30]
[358170413,1744815035969,-153.0,0.00043288,30]
[358170414,1744815036052,-153.0,0.00043288,30]
[358170415,1744815036135,-153.0,0.00043288,30]
[358170416,1744815036219,-153.0,0.00043288,30]
[358170417,1744815036305,-153.0,0.00043288,30]
[358170418,1744815036390,-153.0,0.00043288,30]
[358170419,1744815036471,-153.0,0.00043288,30]
[358170420,1744815036554,-153.0,0.00043288,30]
[358170421,1744815036642,-153.0,0.00043288,30]
[358170422,1744815036730,-153.0,0.00043288,30]
[358170423,1744815036816,-153.0,0.00043288,30]
[358170424,1744815036900,-153.0,0.00043288,30]
[358170425,1744815036984,-153.0,0.00043288,30]
[358170426,1744815037067,-153.0,0.00043288,30]
[358170427,1744815037149,-153.0,0.00043288,30]
[358170428,1744815037231,-153.0,0.00043288,30]
[358170429,1744815037317,-153.0,0.00043288,30]
[358170430,1744815037399,-153.0,0.00043288,30]
[358170431,1744815037479,-153.0,0.00043288,30]
[358170432,1744815037560,-153.0,0.00043288,30]
[358170433,1744815037639,-153.0,0.00043288,30]
[358170434,1744815037721,-153.0,0.00043288,30]
[358170437,1744815037810,-153.0,0.00043288,30]
[358170440,1744815037891,-153.0,0.00043288,30]
[358170441,1744815037972,-153.0,0.00043288,30]
[358170442,1744815038056,-153.0,0.00043288,30]
[358170443,1744815038140,-153.0,0.00043288,30]
[358170444,1744815038224,-153.0,0.00043288,30]
[358170445,1744815038311,-153.0,0.00043288,30]
[358170446,1744815038396,-153.0,0.00043288,30]
[358170447,1744815038484,-153.0,0.00043288,30]
[358170451,1744815038570,-153.0,0.00043288,30]
[358170461,1744815038653,-153.0,0.00043288,30]
[358170470,1744815038736,-153.0,0.00043288,30]
[358170475,1744815038830,-165.0,0.000513,120]
[358170476,1744815038912,-2110.0,0.000525,30]
[358170477,1744815038990,-2110.0,0.00053,30]
[358170478,1744815039067,-2110.0,0.000535,30]
[358170479,1744815039147,-2110.0,0.00054,30]
[358170480,1744815039233,-500.0,0.00054,120]
[358170481,1744815039319,-500.0,0.00054,120]
[358170482,1744815039402,-500.0,0.00054,120]
[358170483,1744815039488,-500.0,0.00054,120]
[358170484,1744815039571,-500.0,0.00054,120]
[358170485,1744815039657,-500.0,0.00054,120]
[358170486,1744815039747,-500.0,0.00054,120]
[358170487,1744815039834,-500.0,0.00054,120]
[358170490,1744815039925,-500.0,0.00054,120]
[358170491,1744815040010,-521.6,0.00054,120]
[358170492,1744815040094,-260.70920525,0.00054068,120]
[358170493,1744815040176,-2110.0,0.000545,30]
[358170494,1744815040275,-165.0,0.000546,120]
[358170495,1744815040364,-154.21777865,0.00054794,120]
[358170496,1744815040445,-500.0,0.00054794,120]
[358170497,1744815040530,-229.63138548,0.00054794,120]
[358170499,1744815040615,-500.0,0.00054794,120]
[358170504,1744815040699,-500.0,0.00054794,120]
[358170505,1744815040978,-500.0,0.00054794,120]
[358170506,1744815041051,-500.0,0.00054794,120]
[358170507,1744815041124,-500.0,0.00054794,120]
[358170508,1744815041198,-500.0,0.00054794,120]
[358170509,1744815041273,-547.27505104,0.00054794,120]
[358170510,1744815041348,-500.0,0.00054794,120]
[358170511,1744815041423,-500.0,0.00054794,120]
[358170512,1744815041500,-500.0,0.00054794,120]
[358170513,1744815041576,-500.0,0.00054794,120]
[358170514,1744815041650,-500.0,0.00054794,120]
[358170515,1744815041731,-500.0,0.00054794,120]
[358170516,1744815041815,-500.0,0.00054794,120]
[358170517,1744815041893,-500.0,0.00054794,120]
[358170518,1744815041975,-500.0,0.00054794,120]
[358170519,1744815042053,-500.0,0.00054794,120]
[358170520,1744815042130,-500.0,0.00054794,120]
[358170521,1744815042204,-500.0,0.00054794,120]
[358170522,1744815042283,-500.0,0.00054794,120]
[358170523,1744815042365,-500.0,0.00054794,120]
[358170524,1744815042443,-1154.03,0.00054794,120]
[358170525,1744815042519,-500.0,0.00054794,120]
[358170526,1744815042599,-825.38,0.00054794,120]
[358170527,1744815042678,-500.0,0.00054794,120]
[358170528,1744815042767,-500.0,0.00054794,120]
[358170530,1744815042852,-500.0,0.00054794,120]
[358170531,1744815042932,-500.0,0.00054794,120]
[358170532,1744815043006,-500.0,0.00054794,120]
[358170533,1744815043075,-500.0,0.00054794,120]
[358170534,1744815043147,-560.05,0.00054794,120]
[358170535,1744815043223,-500.0,0.00054794,120]
[358170536,1744815043295,-500.0,0.00054794,120]
[358170537,1744815043374,-500.0,0.00054794,120]
[358170539,1744815043453,-1244.43,0.00054794,120]
[358170548,1744815043532,-500.0,0.00054794,120]
[358170549,1744815043607,-500.0,0.00054794,120]
[358170550,1744815043685,-500.0,0.00054794,120]
[358170551,1744815043765,-500.0,0.00054794,120]
[358170552,1744815043848,-1072.2,0.00054794,120]
[358170553,1744815043927,-500.0,0.00054794,120]
[358170554,1744815044010,-1000.0,0.00054794,120]
[358170555,1744815044092,-500.0,0.00054794,120]
[358170556,1744815044172,-500.0,0.00054794,120]
[358170557,1744815044256,-500.0,0.00054794,120]
[358170558,1744815044343,-500.0,0.00054794,120]
[358170559,1744815044433,-500.0,0.00054794,120]
[358170560,1744815044519,-500.0,0.00054794,120]
[358170561,1744815044607,-500.0,0.00054794,120]
[358170562,1744815044692,-151.0,0.00055,120]
[358170563,1744815044775,-151.0,0.00055,120]
[358170564,1744815044855,-151.0,0.00055,120]
[358170565,1744815044929,-151.0,0.00055,120]
[358170566,1744815045004,-151.0,0.00055,120]
[358170567,1744815045079,-151.0,0.00055,120]
[358170568,1744815045154,-151.0,0.00055,120]
[358170569,1744815045231,-151.0,0.00055,120]
[358170570,1744815045310,-151.0,0.00055,120]
[358170571,1744815045384,-2110.0,0.00055,30]
[358170572,1744815045461,-151.0,0.00055,120]
[358170573,1744815045537,-433.41,0.00055,120]
[358170574,1744815045611,-500.0,0.00055068,120]
[358170575,1744815045687,-500.0,0.00055068,120]
[358170579,1744815045768,-500.0,0.00055068,120]
[358170584,1744815045852,-500.0,0.00055068,120]
[358170594,1744815045933,-500.0,0.00055068,120]
[358170596,1744815046014,-500.0,0.00055068,120]
[358170597,1744815046095,-500.0,0.00055068,120]
[358170598,1744815046176,-500.0,0.00055068,120]
[358170599,1744815046259,-500.0,0.00055068,120]
[358170600,1744815046340,-500.0,0.00055068,120]